[Event "Kurnosov Memorial Rapid 2018"]
[Site "Chelyabinsk"]
[Date "2018.09.07"]
[Round "1"]
[White "Oparin, Grigoriy"]
[Black "Sazonova, Anastasia"]
[Result "1-0"]
[ECO "A11"]
[WhiteElo "2665"]
[BlackElo "2005"]
[Annotator "RC"]
[PlyCount "65"]
[EventDate "2018.09.07"]
[EventType "swiss"]
[EventCountry "RUS"]
[SourceTitle "playchess.com"]
[Source "ChessBase"]
[SourceQuality "1"]
[TimeControl "900+10"]

1. c4 c6 2. Nf3 d5 3. e3 Nf6 4. Nc3 Bg4 5. cxd5 cxd5 6. Qb3 Bc8 7. Ne5 Nc6 8. d4 e6 9. Bb5 Qc7 10. Bd2 Bd6 11. f4 a6 12. Bd3 O-O 13. Rc1 Na5 14. Qc2 Nc4 15. Ne2 b5 16. b3 Nxd2 17. Qxc7 Bxc7 18. Rxc7 Nde4 19. Ng3 b4 20. Bxe4 Nxe4 21. Nxe4 dxe4 22. Kd2 a5 23. Rhc1 Ba6 24. g4 f6 25. Nd7 Rf7 26. Nb6 Rb8 27. Rxf7 Kxf7 28. Rc7+ Kg8 29. Nd7 Rd8 30. Nc5 Bb5 31. Nxe6 Re8 32. Nxg7 Ra8 33. Nh5 1-0

[Event "Kurnosov Memorial Rapid 2018"]
[Site "Chelyabinsk"]
[Date "2018.09.08"]
[Round "8"]
[White "Yakovich, Yuri"]
[Black "Demidov, Mikhail"]
[Result "1/2-1/2"]
[ECO "E00"]
[WhiteElo "2502"]
[BlackElo "2514"]
[Annotator "RC"]
[PlyCount "78"]
[EventDate "2018.09.07"]
[EventType "swiss"]
[EventCountry "RUS"]
[SourceTitle "playchess.com"]
[Source "ChessBase"]
[SourceQuality "1"]
[TimeControl "900+10"]

1. d4 {[%emt 0:00:00]} e6 {[%emt 0:00:00]} 2. c4 {[%emt 0:00:00]} Bb4+ {[%emt 0:00:00]} 3. Bd2 {[%emt 0:00:01]} Qe7 {[%emt 0:00:00]} 4. Nc3 {[%emt 0:00:07]} Nf6 {[%emt 0:00:03]} 5. Qc2 {[%emt 0:01:52]} O-O {[%emt 0:00:13]} 6. a3 {[%emt 0:00:06]} Bxc3 {[%emt 0:00:05]} 7. Bxc3 {[%emt 0:00:01]} d6 {[%emt 0:00:05]} 8. e3 {[%emt 0:00:35]} Re8 {[%emt 0:00:11]} 9. Ne2 {[%emt 0:00:38]} a5 {[%emt 0:00:40]} 10. Ng3 {[%emt 0:00:06]} a4 {[%emt 0:01:29]} 11. Be2 {[%emt 0:00:22]} e5 {[%emt 0:00:49]} 12. O-O {[%emt 0:00:05]} exd4 {[%emt 0:02:57]} 13. exd4 {[%emt 0:00:12]} d5 {[%emt 0:00:07]} 14. Rae1 {[%emt 0:05:53]} Qd8 {[%emt 0:01:50]} 15. Bd3 {[%emt 0:00:47]} Be6 {[%emt 0:02:53]} 16. c5 {[%emt 0:00:06]} Nc6 {[%emt 0:00:41]} 17. Bb5 {[%emt 0:01:54]} h5 {[%emt 0:01:11]} 18. h3 {[%emt 0:00:33]} h4 {[%emt 0:01:54]} 19. Ne2 {[%emt 0:00:24]} Ne4 {[%emt 0:00:39]} 20. Bd2 {[%emt 0:00:57]} Bf5 {[%emt 0:00:42]} 21. Qc1 {[%emt 0:00:30]} Qf6 {[%emt 0:00:02]} 22. Be3 {[%emt 0:00:08]} Ra5 {[%emt 0:00:42]} 23. Bxc6 {[%emt 0:00:16]} Qxc6 {[%emt 0:00:13]} 24. f3 {[%emt 0:00:15]} Nf6 {[%emt 0:00:43]} 25. Bg5 {[%emt 0:00:22]} b6 {[%emt 0:00:01]} 26. cxb6 {[%emt 0:00:14]} Qxb6 {[%emt 0:00:28]} 27. Bxh4 {[%emt 0:00:57]} Bd3 {[%emt 0:00:32]} 28. Qd2 {[%emt 0:00:35]} Bxe2 {[%emt 0:00:16]} 29. Bxf6 {[%emt 0:00:22]} Raa8 {[%emt 0:00:08]} 30. Rxe2 {[%emt 0:00:08]} Rxe2 {[%emt 0:00:06]} 31. Qxe2 {[%emt 0:00:00]} Qxf6 {[%emt 0:00:02]} 32. Qd2 {[%emt 0:00:25]} Rb8 {[%emt 0:00:06]} 33. Rc1 {[%emt 0:00:06]} c6 {[%emt 0:00:01]} 34. Rc3 {[%emt 0:00:08]} g6 {[%emt 0:00:05]} 35. Kh1 {[%emt 0:00:07]} Re8 {[%emt 0:00:12]} 36. Re3 {[%emt 0:00:06]} Rb8 {[%emt 0:00:03]} 37. Re5 {[%emt 0:00:10]} Kg7 {[%emt 0:00:29]} 38. f4 {[%emt 0:00:09]} Qh4 {[%emt 0:00:15]} 39. Re2 {[%emt 0:00:50]} Ra8 1/2-1/2